[Event "Late-Titled-Tuesday-Blitz-October-10-2023"]
[Site "Chess.com"]
[Date "2023.10.10"]
[Round "7"]
[White "Polish_fighter3000"]
[Black "nihalsarin"]
[Result "0-1"]
[WhiteElo "3055"]
[BlackElo "3117"]
[TimeControl "180+1"]
[EndTime "15:13:24 PDT"]
[Termination "nihalsarin won on time"]

1. d4 {[%clk 0:03:00.9]} 1... Nf6 {[%clk 0:02:54.3]} 2. c4 {[%clk 0:03:01.5]}
2... e6 {[%clk 0:02:45.7]} 3. Nc3 {[%clk 0:03:01.3]} 3... Bb4 {[%clk 0:02:45.2]}
4. e3 {[%clk 0:03:01.6]} 4... O-O {[%clk 0:02:44.8]} 5. Bd3 {[%clk 0:03:00.9]}
5... d5 {[%clk 0:02:43.5]} 6. a3 {[%clk 0:02:48.5]} 6... dxc4 {[%clk 0:02:41.5]}
7. Bxc4 {[%clk 0:02:45.7]} 7... Be7 {[%clk 0:02:42.4]} 8. Nf3 {[%clk 0:02:34.9]}
8... b6 {[%clk 0:02:42.9]} 9. O-O {[%clk 0:02:34.7]} 9... Bb7 {[%clk 0:02:43.2]}
10. b4 {[%clk 0:02:30.2]} 10... Nbd7 {[%clk 0:02:43.4]} 11. Bb2 {[%clk
0:02:30.2]} 11... c5 {[%clk 0:02:44]} 12. dxc5 {[%clk 0:02:27.1]} 12... bxc5
{[%clk 0:02:44.9]} 13. b5 {[%clk 0:02:27.3]} 13... Nb6 {[%clk 0:02:43.4]} 14.
Be2 {[%clk 0:02:27.1]} 14... Qc7 {[%clk 0:02:38.8]} 15. Qc2 {[%clk 0:02:15.1]}
15... Ng4 {[%clk 0:02:27.7]} 16. h3 {[%clk 0:02:05.9]} 16... Bxf3 {[%clk
0:02:21.1]} 17. hxg4 {[%clk 0:02:06.4]} 17... Bb7 {[%clk 0:02:22]} 18. a4 {[%clk
0:01:57.9]} 18... Nd5 {[%clk 0:02:18.5]} 19. Nxd5 {[%clk 0:01:55]} 19... Bxd5
{[%clk 0:02:18.3]} 20. e4 {[%clk 0:01:46.7]} 20... Bb7 {[%clk 0:02:17.1]} 21. a5
{[%clk 0:01:47]} 21... Qf4 {[%clk 0:02:09.3]} 22. Ra4 {[%clk 0:01:46.7]} 22...
Rad8 {[%clk 0:02:04.4]} 23. Bc3 {[%clk 0:01:38.5]} 23... c4 {[%clk 0:01:54.7]}
24. Rxc4 {[%clk 0:01:33.6]} 24... Rc8 {[%clk 0:01:55.3]} 25. g3 {[%clk
0:01:28.5]} 25... Qg5 {[%clk 0:01:39.1]} 26. Bd4 {[%clk 0:01:11]} 26... Rxc4
{[%clk 0:01:22.4]} 27. Qxc4 {[%clk 0:01:11.9]} 27... Bxe4 {[%clk 0:01:22.4]} 28.
Be3 {[%clk 0:00:54.8]} 28... Qg6 {[%clk 0:01:18.9]} 29. Bxa7 {[%clk 0:00:53.3]}
29... Bd5 {[%clk 0:01:18.2]} 30. Qd3 {[%clk 0:00:38.7]} 30... Be4 {[%clk
0:01:18.2]} 31. Qe3 {[%clk 0:00:36.5]} 31... f5 {[%clk 0:01:06.8]} 32. gxf5
{[%clk 0:00:15.6]} 32... Qxf5 {[%clk 0:01:00.6]} 33. g4 {[%clk 0:00:09.1]} 33...
Qg6 {[%clk 0:00:58.2]} 34. a6 {[%clk 0:00:08]} 34... Bd6 {[%clk 0:00:51.4]} 35.
f3 {[%clk 0:00:07.3]} 35... Bd5 {[%clk 0:00:51.9]} 36. Bd3 {[%clk 0:00:04]}
36... Qf6 {[%clk 0:00:48.5]} 37. Bd4 {[%clk 0:00:03.7]} 37... Bh2+ {[%clk
0:00:27.9]} 38. Kxh2 {[%clk 0:00:02.6]} 38... Qh4+ {[%clk 0:00:26.9]} 39. Kg2
{[%clk 0:00:02.6]} 39... Qxg4+ {[%clk 0:00:27.3]} 40. Kf2 {[%clk 0:00:02.1]}
40... Rxf3+ {[%clk 0:00:26.6]} 41. Ke1 {[%clk 0:00:02.7]} 41... Rxe3+ {[%clk
0:00:25.2]} 42. Bxe3 {[%clk 0:00:03.6]} 42... Qb4+ {[%clk 0:00:21.3]} 43. Ke2
{[%clk 0:00:02.4]} 43... Qg4+ {[%clk 0:00:20.1]} 44. Kd2 {[%clk 0:00:02]} 44...
Qb4+ {[%clk 0:00:20.7]} 45. Ke2 {[%clk 0:00:02.4]} 45... Bc4 {[%clk 0:00:14.5]}
46. Bxc4 {[%clk 0:00:02.1]} 46... Qxc4+ {[%clk 0:00:14.8]} 47. Kf2 {[%clk
0:00:02.5]} 47... Qc2+ {[%clk 0:00:12.4]} 48. Kg1 {[%clk 0:00:01.8]} 48... Qg6+
{[%clk 0:00:12.6]} 49. Kf2 {[%clk 0:00:01.5]} 49... Qc2+ {[%clk 0:00:12.6]} 50.
Kg1 {[%clk 0:00:01.6]} 50... Qg6+ {[%clk 0:00:12.2]} 51. Kf2 {[%clk 0:00:02]}
51... Qf5+ {[%clk 0:00:12.1]} 52. Kg1 {[%clk 0:00:01.9]} 52... Qe5 {[%clk
0:00:10.3]} 53. Bf2 {[%clk 0:00:01.7]} 53... Qg5+ {[%clk 0:00:09.7]} 54. Kh1
{[%clk 0:00:01.4]} 54... Qxb5 {[%clk 0:00:10.3]} 55. Ra1 {[%clk 0:00:01.5]}
55... Qd5+ {[%clk 0:00:10.5]} 56. Kg1 {[%clk 0:00:01.4]} 56... Qg5+ {[%clk
0:00:11.2]} 57. Kf1 {[%clk 0:00:01.3]} 57... Qb5+ {[%clk 0:00:11.6]} 58. Kg1
{[%clk 0:00:01.8]} 58... Qe5 {[%clk 0:00:11.6]} 59. Re1 {[%clk 0:00:01]} 59...
Qg5+ {[%clk 0:00:09.9]} 0-1

[Event "Late-Titled-Tuesday-Blitz-October-10-2023"]
[Site "Chess.com"]
[Date "2023.10.10"]
[Round "7"]
[White "KaydenTroffChess"]
[Black "Grischuk"]
[Result "1-0"]
[WhiteElo "2823"]
[BlackElo "2974"]
[TimeControl "180+1"]
[EndTime "15:13:24 PDT"]
[Termination "KaydenTroffChess won on time"]

1. d4 {[%clk 0:03:00.9]} 1... e6 {[%clk 0:03:00.2]} 2. Nf3 {[%clk 0:02:58]} 2...
c5 {[%clk 0:02:59.7]} 3. c3 {[%clk 0:02:51.6]} 3... Nf6 {[%clk 0:02:59.2]} 4.
Bf4 {[%clk 0:02:51.6]} 4... Nc6 {[%clk 0:02:48.8]} 5. e3 {[%clk 0:02:49.9]} 5...
d5 {[%clk 0:02:47.1]} 6. Nbd2 {[%clk 0:02:46.8]} 6... Nh5 {[%clk 0:02:46.8]} 7.
Be5 {[%clk 0:02:39]} 7... f6 {[%clk 0:02:47]} 8. Bg3 {[%clk 0:02:37]} 8... g6
{[%clk 0:02:46.7]} 9. Bh4 {[%clk 0:02:31.3]} 9... Bd7 {[%clk 0:02:33.2]} 10. g4
{[%clk 0:02:22.1]} 10... Ng7 {[%clk 0:02:31.3]} 11. h3 {[%clk 0:02:19.4]} 11...
cxd4 {[%clk 0:02:17.3]} 12. Nxd4 {[%clk 0:02:03.2]} 12... Bd6 {[%clk 0:02:04.5]}
13. Qf3 {[%clk 0:01:43]} 13... O-O {[%clk 0:02:03.4]} 14. Bg3 {[%clk 0:01:42.2]}
14... Bxg3 {[%clk 0:01:49.1]} 15. Qxg3 {[%clk 0:01:41.9]} 15... e5 {[%clk
0:01:49.5]} 16. N4f3 {[%clk 0:01:37.4]} 16... Qb6 {[%clk 0:01:39.3]} 17. Rb1
{[%clk 0:01:35.2]} 17... Be6 {[%clk 0:01:35.9]} 18. Be2 {[%clk 0:01:12]} 18...
d4 {[%clk 0:01:20.4]} 19. cxd4 {[%clk 0:01:09.8]} 19... exd4 {[%clk 0:01:20.3]}
20. exd4 {[%clk 0:01:05.2]} 20... Nxd4 {[%clk 0:01:14.3]} 21. Nxd4 {[%clk
0:00:57.7]} 21... Qxd4 {[%clk 0:01:15.2]} 22. Qc3 {[%clk 0:00:55.5]} 22... Qf4
{[%clk 0:01:05.9]} 23. Qf3 {[%clk 0:00:27.9]} 23... Qe5 {[%clk 0:00:45.6]} 24.
O-O {[%clk 0:00:19.2]} 24... f5 {[%clk 0:00:45.9]} 25. Nc4 {[%clk 0:00:14]}
25... Qf6 {[%clk 0:00:32.7]} 26. Rbd1 {[%clk 0:00:10.2]} 26... Rac8 {[%clk
0:00:19.9]} 27. b3 {[%clk 0:00:09.1]} 27... Qg5 {[%clk 0:00:16.5]} 28. Qe3
{[%clk 0:00:09.3]} 28... Qh4 {[%clk 0:00:15.9]} 29. Qg3 {[%clk 0:00:07.4]} 29...
Qxg3+ {[%clk 0:00:14.9]} 30. fxg3 {[%clk 0:00:08.3]} 30... fxg4 {[%clk 0:00:14]}
31. hxg4 {[%clk 0:00:08]} 31... Rxf1+ {[%clk 0:00:13.3]} 32. Kxf1 {[%clk
0:00:08.6]} 32... b6 {[%clk 0:00:10.9]} 33. Nd6 {[%clk 0:00:08.3]} 33... Rd8
{[%clk 0:00:10.9]} 34. Nb5 {[%clk 0:00:08]} 34... Rxd1+ {[%clk 0:00:10.8]} 35.
Bxd1 {[%clk 0:00:08.9]} 35... a5 {[%clk 0:00:11.3]} 36. Nd4 {[%clk 0:00:08.8]}
36... Kf7 {[%clk 0:00:11]} 37. Kf2 {[%clk 0:00:09]} 37... Kf6 {[%clk 0:00:08.8]}
38. Ke3 {[%clk 0:00:09]} 38... Bd5 {[%clk 0:00:08]} 39. Bf3 {[%clk 0:00:08.6]}
39... Ke5 {[%clk 0:00:07.5]} 40. Bxd5 {[%clk 0:00:08.3]} 40... Kxd5 {[%clk
0:00:08.4]} 41. Kd3 {[%clk 0:00:07.4]} 41... Ne8 {[%clk 0:00:07.2]} 42. Nf3
{[%clk 0:00:07.7]} 42... Nf6 {[%clk 0:00:07]} 43. g5 {[%clk 0:00:07.4]} 43...
Ne4 {[%clk 0:00:07.1]} 44. g4 {[%clk 0:00:06.8]} 44... Nf2+ {[%clk 0:00:07.3]}
45. Ke3 {[%clk 0:00:06.3]} 45... Nxg4+ {[%clk 0:00:08.2]} 46. Kf4 {[%clk
0:00:04.4]} 46... Nf2 {[%clk 0:00:08.8]} 47. Ke3 {[%clk 0:00:04.9]} 47... Ne4
{[%clk 0:00:08.7]} 48. Kd3 {[%clk 0:00:05]} 48... b5 {[%clk 0:00:08]} 49. a3
{[%clk 0:00:04.6]} 49... b4 {[%clk 0:00:07.7]} 50. axb4 {[%clk 0:00:04.9]} 50...
axb4 {[%clk 0:00:08.6]} 51. Ke3 {[%clk 0:00:04.7]} 51... Nd6 {[%clk 0:00:05.8]}
52. Nd2 {[%clk 0:00:05.3]} 52... Ke5 {[%clk 0:00:04.7]} 53. Nf3+ {[%clk
0:00:04.7]} 53... Kd5 {[%clk 0:00:05]} 54. Kf4 {[%clk 0:00:04.9]} 54... Nf5
{[%clk 0:00:04.4]} 55. Nd2 {[%clk 0:00:05]} 55... Nd4 {[%clk 0:00:04.6]} 56. Ne4
{[%clk 0:00:04.9]} 56... Nxb3 {[%clk 0:00:04.6]} 57. Nf6+ {[%clk 0:00:05.8]}
57... Ke6 {[%clk 0:00:03.4]} 58. Nxh7 {[%clk 0:00:06.7]} 58... Nc5 {[%clk
0:00:03.6]} 59. Ke3 {[%clk 0:00:06.9]} 59... b3 {[%clk 0:00:03.8]} 60. Kd2
{[%clk 0:00:07.1]} 60... Kf5 {[%clk 0:00:03.6]} 61. Kc3 {[%clk 0:00:07.1]} 61...
Kf4 {[%clk 0:00:03.1]} 62. Kb2 {[%clk 0:00:07.4]} 62... Ke5 {[%clk 0:00:03.4]}
63. Kc3 {[%clk 0:00:08]} 63... Ke6 {[%clk 0:00:02.9]} 64. Nf6 {[%clk 0:00:07.3]}
64... Kf5 {[%clk 0:00:03.2]} 65. Nh7 {[%clk 0:00:07.7]} 1-0

[Event "Late-Titled-Tuesday-Blitz-October-10-2023"]
[Site "Chess.com"]
[Date "2023.10.10"]
[Round "7"]
[White "falzehope0"]
[Black "sergeikim"]
[Result "0-1"]
[WhiteElo "2348"]
[BlackElo "2578"]
[TimeControl "180+1"]
[EndTime "15:13:27 PDT"]
[Termination "sergeikim won on time"]

1. d4 {[%clk 0:03:00.9]} 1... Nf6 {[%clk 0:02:59.5]} 2. e3 {[%clk 0:03:01.3]}
2... g6 {[%clk 0:02:59.7]} 3. Bd3 {[%clk 0:03:01.7]} 3... Bg7 {[%clk 0:03:00]}
4. f4 {[%clk 0:03:02.5]} 4... d6 {[%clk 0:03:00.2]} 5. Nf3 {[%clk 0:03:03]} 5...
O-O {[%clk 0:03:00.1]} 6. O-O {[%clk 0:03:03.3]} 6... Nbd7 {[%clk 0:02:56.4]} 7.
f5 {[%clk 0:03:03.4]} 7... c5 {[%clk 0:02:50.6]} 8. Qe1 {[%clk 0:03:03.1]} 8...
b6 {[%clk 0:02:46.2]} 9. Qh4 {[%clk 0:03:01.3]} 9... Bb7 {[%clk 0:02:42.6]} 10.
fxg6 {[%clk 0:02:59.9]} 10... fxg6 {[%clk 0:02:38.4]} 11. Ng5 {[%clk 0:02:59.7]}
11... e5 {[%clk 0:02:25.9]} 12. Ne6 {[%clk 0:02:56.9]} 12... Qe7 {[%clk
0:02:26.3]} 13. Nxf8 {[%clk 0:02:56.1]} 13... Rxf8 {[%clk 0:02:26.2]} 14. Nc3
{[%clk 0:02:49.3]} 14... d5 {[%clk 0:02:24.8]} 15. Bd2 {[%clk 0:02:39.8]} 15...
e4 {[%clk 0:02:17.3]} 16. Be2 {[%clk 0:02:29.9]} 16... a6 {[%clk 0:02:03.7]} 17.
Na4 {[%clk 0:02:17.4]} 17... Qe6 {[%clk 0:01:57.5]} 18. c3 {[%clk 0:02:11.5]}
18... h6 {[%clk 0:01:47.5]} 19. Qg3 {[%clk 0:02:07]} 19... Kh7 {[%clk
0:01:45.9]} 20. Qc7 {[%clk 0:02:03.4]} 20... Bc6 {[%clk 0:01:44.8]} 21. b3
{[%clk 0:01:57.7]} 21... Bxa4 {[%clk 0:01:37.1]} 22. bxa4 {[%clk 0:01:58.6]}
22... c4 {[%clk 0:01:37.1]} 23. Rab1 {[%clk 0:01:47.2]} 23... Ne8 {[%clk
0:01:28.4]} 24. Qg3 {[%clk 0:01:37.9]} 24... Nef6 {[%clk 0:01:27.9]} 25. Rbe1
{[%clk 0:01:25.2]} 25... h5 {[%clk 0:01:20.3]} 26. h3 {[%clk 0:01:21.7]} 26...
Bh6 {[%clk 0:01:19.7]} 27. Bc1 {[%clk 0:01:18.8]} 27... Rf7 {[%clk 0:01:18.6]}
28. Ba3 {[%clk 0:01:16.8]} 28... Bf8 {[%clk 0:01:13.5]} 29. Bxf8 {[%clk
0:01:14.6]} 29... Nxf8 {[%clk 0:01:13.6]} 30. Rb1 {[%clk 0:01:11.2]} 30... N8d7
{[%clk 0:01:13.4]} 31. Rf2 {[%clk 0:01:05.5]} 31... Qc6 {[%clk 0:01:12.3]} 32.
Bd1 {[%clk 0:00:57.9]} 32... Kg7 {[%clk 0:01:10.6]} 33. Bc2 {[%clk 0:00:57.4]}
33... Qe6 {[%clk 0:01:05.8]} 34. Rbf1 {[%clk 0:00:56.1]} 34... Qe7 {[%clk
0:01:03]} 35. Qc7 {[%clk 0:00:54]} 35... Qa3 {[%clk 0:01:00.4]} 36. Bd1 {[%clk
0:00:48.9]} 36... Qxc3 {[%clk 0:00:59]} 37. Qg3 {[%clk 0:00:44.2]} 37... Qa3
{[%clk 0:00:51.1]} 38. Bxh5 {[%clk 0:00:43]} 38... Nf8 {[%clk 0:00:47.5]} 39.
Qg5 {[%clk 0:00:32.3]} 39... Qd6 {[%clk 0:00:41.8]} 40. Qe5 {[%clk 0:00:25.9]}
40... Qc6 {[%clk 0:00:38.1]} 41. Bd1 {[%clk 0:00:17.4]} 41... Nd7 {[%clk
0:00:37.9]} 42. Qg5 {[%clk 0:00:14.8]} 42... Qd6 {[%clk 0:00:35.2]} 43. Qh4
{[%clk 0:00:12.8]} 43... Qa3 {[%clk 0:00:31.2]} 44. g4 {[%clk 0:00:11.5]} 44...
Qxe3 {[%clk 0:00:28.3]} 45. g5 {[%clk 0:00:11.6]} 45... Ng8 {[%clk 0:00:27.3]}
46. Kh1 {[%clk 0:00:07.9]} 46... Rxf2 {[%clk 0:00:24.9]} 47. Rxf2 {[%clk
0:00:08.8]} 47... Qxd4 {[%clk 0:00:23.7]} 48. Qf4 {[%clk 0:00:07.4]} 48... Qxd1+
{[%clk 0:00:20.6]} 49. Kg2 {[%clk 0:00:07]} 49... Qd4 {[%clk 0:00:16.6]} 50.
Qf7+ {[%clk 0:00:06.5]} 50... Kh8 {[%clk 0:00:17.1]} 51. Qxd7 {[%clk 0:00:06.8]}
51... Qe5 {[%clk 0:00:16.5]} 52. Qf7 {[%clk 0:00:06.2]} 52... Qxg5+ {[%clk
0:00:16.2]} 53. Kh2 {[%clk 0:00:06.2]} 53... e3 {[%clk 0:00:16.3]} 54. Rg2
{[%clk 0:00:06.1]} 54... Qe5+ {[%clk 0:00:15.8]} 55. Kh1 {[%clk 0:00:05.5]}
55... Qa1+ {[%clk 0:00:15.2]} 56. Rg1 {[%clk 0:00:05.3]} 56... Qf6 {[%clk
0:00:14.6]} 57. Qxg6 {[%clk 0:00:04.5]} 57... Qxg6 {[%clk 0:00:14.3]} 58. Rxg6
{[%clk 0:00:05.3]} 58... e2 {[%clk 0:00:13.3]} 59. Re6 {[%clk 0:00:05.4]} 59...
d4 {[%clk 0:00:12.1]} 60. Rxe2 {[%clk 0:00:05.5]} 60... d3 {[%clk 0:00:12.6]}
61. Rd2 {[%clk 0:00:05.8]} 61... Nf6 {[%clk 0:00:13]} 62. Rd1 {[%clk 0:00:03.2]}
62... Ne4 {[%clk 0:00:12]} 63. Kg2 {[%clk 0:00:03.4]} 63... d2 {[%clk
0:00:12.4]} 64. Kf3 {[%clk 0:00:03]} 64... c3 {[%clk 0:00:12.9]} 65. Ke2 {[%clk
0:00:02.5]} 65... Kg7 {[%clk 0:00:10.3]} 66. Kd3 {[%clk 0:00:02.3]} 66... b5
{[%clk 0:00:08.9]} 0-1

[Event "Late-Titled-Tuesday-Blitz-October-10-2023"]
[Site "Chess.com"]
[Date "2023.10.10"]
[Round "7"]
[White "Inepton_Fermion"]
[Black "Elbebiber"]
[Result "1-0"]
[WhiteElo "2398"]
[BlackElo "2158"]
[TimeControl "180+1"]
[EndTime "15:13:32 PDT"]
[Termination "Inepton_Fermion won by resignation"]

1. Nf3 {[%clk 0:02:32.5]} 1... d5 {[%clk 0:02:57.9]} 2. b3 {[%clk 0:02:32.2]}
2... Nf6 {[%clk 0:02:48.8]} 3. Bb2 {[%clk 0:02:29.1]} 3... g6 {[%clk 0:02:41.1]}
4. c4 {[%clk 0:02:27.9]} 4... c6 {[%clk 0:02:39.1]} 5. g3 {[%clk 0:02:27.7]}
5... Bg7 {[%clk 0:02:38.7]} 6. Bg2 {[%clk 0:02:28.1]} 6... O-O {[%clk
0:02:37.2]} 7. O-O {[%clk 0:02:28.2]} 7... Ne4 {[%clk 0:02:27.6]} 8. Bxg7 {[%clk
0:02:27.5]} 8... Kxg7 {[%clk 0:02:27.6]} 9. d3 {[%clk 0:02:27.6]} 9... Nf6
{[%clk 0:02:25.4]} 10. Nbd2 {[%clk 0:02:23.3]} 10... Nbd7 {[%clk 0:02:19.6]} 11.
d4 {[%clk 0:02:20.9]} 11... Re8 {[%clk 0:02:16.2]} 12. cxd5 {[%clk 0:02:08.3]}
12... cxd5 {[%clk 0:02:15.7]} 13. e3 {[%clk 0:02:08.2]} 13... Nb6 {[%clk
0:02:02.5]} 14. Rc1 {[%clk 0:02:06.8]} 14... Bg4 {[%clk 0:02:00.7]} 15. h3
{[%clk 0:02:02.9]} 15... Bxf3 {[%clk 0:02:00.5]} 16. Nxf3 {[%clk 0:02:03.8]}
16... Rc8 {[%clk 0:01:58]} 17. Qd3 {[%clk 0:01:57.1]} 17... a6 {[%clk
0:01:47.6]} 18. Rc5 {[%clk 0:01:45.4]} 18... Qd6 {[%clk 0:01:37.1]} 19. Rfc1
{[%clk 0:01:40.9]} 19... Ne4 {[%clk 0:01:32.4]} 20. R5c2 {[%clk 0:01:28.4]}
20... Rxc2 {[%clk 0:01:29.1]} 21. Rxc2 {[%clk 0:01:28.4]} 21... Rc8 {[%clk
0:01:28]} 22. Ne5 {[%clk 0:01:28.5]} 22... Nf6 {[%clk 0:01:19]} 23. Rxc8 {[%clk
0:01:09.8]} 23... Nxc8 {[%clk 0:01:18.5]} 24. Qc3 {[%clk 0:01:07.6]} 24... Nb6
{[%clk 0:01:11.5]} 25. h4 {[%clk 0:00:49.5]} 25... Nfd7 {[%clk 0:01:00.4]} 26.
Nd3 {[%clk 0:00:44.6]} 26... e6 {[%clk 0:00:55.5]} 27. Nc5 {[%clk 0:00:43.4]}
27... Qc6 {[%clk 0:00:49.1]} 28. e4 {[%clk 0:00:26.6]} 28... Kg8 {[%clk
0:00:35.3]} 29. e5 {[%clk 0:00:19]} 29... Nc8 {[%clk 0:00:28.9]} 30. h5 {[%clk
0:00:13.3]} 30... b6 {[%clk 0:00:21.6]} 31. Ne4 {[%clk 0:00:09]} 31... Qxc3
{[%clk 0:00:19.9]} 32. Nxc3 {[%clk 0:00:09.9]} 32... gxh5 {[%clk 0:00:18.8]} 33.
Bf3 {[%clk 0:00:09.5]} 33... Kf8 {[%clk 0:00:17.2]} 34. Bxh5 {[%clk 0:00:09.5]}
34... Ke7 {[%clk 0:00:17.8]} 35. Be2 {[%clk 0:00:08.2]} 35... a5 {[%clk
0:00:17]} 36. Nb5 {[%clk 0:00:07.7]} 36... Nb8 {[%clk 0:00:16.8]} 37. Bd3 {[%clk
0:00:05.8]} 37... h6 {[%clk 0:00:16.7]} 38. Kg2 {[%clk 0:00:04.8]} 38... Kf8
{[%clk 0:00:16.4]} 39. Kf3 {[%clk 0:00:04.5]} 39... Kg7 {[%clk 0:00:17]} 40. Ke2
{[%clk 0:00:02.3]} 40... f6 {[%clk 0:00:16.7]} 41. f4 {[%clk 0:00:02.2]} 41...
fxe5 {[%clk 0:00:16.7]} 42. fxe5 {[%clk 0:00:02.7]} 42... Ne7 {[%clk 0:00:16.4]}
43. Nd6 {[%clk 0:00:02.2]} 43... Nd7 {[%clk 0:00:14.2]} 44. Ke3 {[%clk
0:00:02.1]} 44... Ng6 {[%clk 0:00:12.6]} 45. Bb5 {[%clk 0:00:01.4]} 45... Ndf8
{[%clk 0:00:11.8]} 46. Bc6 {[%clk 0:00:01.5]} 46... Ne7 {[%clk 0:00:11.3]} 47.
Bb7 {[%clk 0:00:01.5]} 47... Kg6 {[%clk 0:00:10.9]} 48. Ba6 {[%clk 0:00:01.2]}
48... Kg5 {[%clk 0:00:11.2]} 49. Bd3 {[%clk 0:00:02.1]} 49... h5 {[%clk
0:00:11.1]} 50. Kf2 {[%clk 0:00:02.5]} 50... Kg4 {[%clk 0:00:11.4]} 51. Be2+
{[%clk 0:00:02.5]} 51... Kg5 {[%clk 0:00:11.9]} 52. Nf7+ {[%clk 0:00:02.9]}
52... Kg6 {[%clk 0:00:11.7]} 53. Nd8 {[%clk 0:00:03.3]} 53... Kg5 {[%clk
0:00:12.3]} 54. Bf1 {[%clk 0:00:03.2]} 54... Nfg6 {[%clk 0:00:12.8]} 55. Bh3
{[%clk 0:00:03.2]} 55... Kh6 {[%clk 0:00:12.2]} 56. Nxe6 {[%clk 0:00:03.7]}
56... Ng8 {[%clk 0:00:10.9]} 57. Nc7 {[%clk 0:00:03.7]} 57... Kg7 {[%clk
0:00:11.8]} 58. Be6 {[%clk 0:00:03.9]} 58... N6e7 {[%clk 0:00:11.4]} 59. Bxd5
{[%clk 0:00:03.5]} 59... Nh6 {[%clk 0:00:09.9]} 60. Be6 {[%clk 0:00:03.3]} 60...
Ng4+ {[%clk 0:00:10.6]} 61. Bxg4 {[%clk 0:00:03.1]} 61... hxg4 {[%clk
0:00:11.5]} 62. d5 {[%clk 0:00:03.7]} 62... Ng6 {[%clk 0:00:11.6]} 63. e6 {[%clk
0:00:03]} 63... Kf6 {[%clk 0:00:12.2]} 64. d6 {[%clk 0:00:02.9]} 64... Ne5
{[%clk 0:00:11]} 65. e7 {[%clk 0:00:02.6]} 65... Kf7 {[%clk 0:00:10.6]} 66.
e8=Q+ {[%clk 0:00:02.8]} 66... Kf6 {[%clk 0:00:10]} 67. Qe6+ {[%clk 0:00:03.4]}
67... Kg5 {[%clk 0:00:09.7]} 68. Qxe5+ {[%clk 0:00:04.1]} 68... Kg6 {[%clk
0:00:09.9]} 69. Qf4 {[%clk 0:00:03]} 1-0

[Event "Late-Titled-Tuesday-Blitz-October-10-2023"]
[Site "Chess.com"]
[Date "2023.10.10"]
[Round "7"]
[White "Horokoskii"]
[Black "ExchangeAB"]
[Result "0-1"]
[WhiteElo "2122"]
[BlackElo "2499"]
[TimeControl "180+1"]
[EndTime "15:13:37 PDT"]
[Termination "ExchangeAB won by checkmate"]

1. c4 {[%clk 0:03:00.9]} 1... c6 {[%clk 0:02:59.8]} 2. e4 {[%clk 0:03:00.2]}
2... d5 {[%clk 0:03:00.1]} 3. exd5 {[%clk 0:02:59.9]} 3... cxd5 {[%clk 0:03:01]}
4. d4 {[%clk 0:02:57.9]} 4... Nf6 {[%clk 0:03:00.9]} 5. Nf3 {[%clk 0:02:56.8]}
5... e6 {[%clk 0:03:01.4]} 6. Nc3 {[%clk 0:02:52.3]} 6... Bb4 {[%clk 0:03:01.5]}
7. cxd5 {[%clk 0:02:38.1]} 7... Nxd5 {[%clk 0:03:00.8]} 8. Bd2 {[%clk 0:02:35]}
8... Nc6 {[%clk 0:02:48.3]} 9. Bd3 {[%clk 0:02:34.7]} 9... Be7 {[%clk
0:02:42.6]} 10. O-O {[%clk 0:02:24.1]} 10... O-O {[%clk 0:02:40.9]} 11. a3
{[%clk 0:02:22.2]} 11... b6 {[%clk 0:02:38.2]} 12. Rc1 {[%clk 0:02:20.6]} 12...
Bb7 {[%clk 0:02:38.4]} 13. Qe2 {[%clk 0:02:14.8]} 13... Nxc3 {[%clk 0:02:37.3]}
14. bxc3 {[%clk 0:02:12.6]} 14... Re8 {[%clk 0:02:30.7]} 15. Rfe1 {[%clk
0:02:00]} 15... Bxa3 {[%clk 0:02:28.8]} 16. Ra1 {[%clk 0:01:48.8]} 16... Be7
{[%clk 0:02:26.8]} 17. Qe4 {[%clk 0:01:46.4]} 17... g6 {[%clk 0:02:26.7]} 18.
Qf4 {[%clk 0:01:24.8]} 18... Bd6 {[%clk 0:02:12.2]} 19. Qg4 {[%clk 0:01:21.2]}
19... Ne7 {[%clk 0:01:59.4]} 20. Bg5 {[%clk 0:01:11.2]} 20... Qc7 {[%clk
0:01:55.2]} 21. Ne5 {[%clk 0:01:07.1]} 21... Nf5 {[%clk 0:01:48.6]} 22. Rac1
{[%clk 0:00:59.1]} 22... Be7 {[%clk 0:01:35.2]} 23. Bxe7 {[%clk 0:00:55.5]}
23... Rxe7 {[%clk 0:01:36.1]} 24. h4 {[%clk 0:00:47]} 24... Ng7 {[%clk
0:01:23.9]} 25. c4 {[%clk 0:00:42.9]} 25... Rd8 {[%clk 0:01:20.7]} 26. c5 {[%clk
0:00:39.2]} 26... Bd5 {[%clk 0:01:15.8]} 27. cxb6 {[%clk 0:00:32.5]} 27... Qxb6
{[%clk 0:01:16.7]} 28. Qg5 {[%clk 0:00:29]} 28... Rde8 {[%clk 0:01:13.3]} 29.
Ng4 {[%clk 0:00:24.9]} 29... Nh5 {[%clk 0:01:00.9]} 30. Rc5 {[%clk 0:00:24.7]}
30... Qb4 {[%clk 0:00:50.7]} 31. Qe3 {[%clk 0:00:22.1]} 31... Ba8 {[%clk
0:00:43.1]} 32. Rxh5 {[%clk 0:00:18.4]} 32... f5 {[%clk 0:00:13.5]} 33. Nh6+
{[%clk 0:00:09.2]} 33... Kf8 {[%clk 0:00:10.6]} 34. Rg5 {[%clk 0:00:08.6]} 34...
e5 {[%clk 0:00:07.9]} 35. d5 {[%clk 0:00:03.6]} 35... e4 {[%clk 0:00:07.3]} 36.
Bf1 {[%clk 0:00:03.5]} 36... Bxd5 {[%clk 0:00:07]} 37. Rd1 {[%clk 0:00:02.8]}
37... Re5 {[%clk 0:00:07]} 38. Qd4 {[%clk 0:00:03.2]} 38... Qxd4 {[%clk
0:00:06.7]} 39. Rxd4 {[%clk 0:00:02.8]} 39... a5 {[%clk 0:00:07.6]} 40. Ra4
{[%clk 0:00:02.5]} 40... Kg7 {[%clk 0:00:07.9]} 41. Rxa5 {[%clk 0:00:02.8]}
41... Kxh6 {[%clk 0:00:07.3]} 42. Rg3 {[%clk 0:00:02.5]} 42... Kg7 {[%clk
0:00:07.6]} 43. Rga3 {[%clk 0:00:02.4]} 43... R8e7 {[%clk 0:00:07.9]} 44. Rc5
{[%clk 0:00:02.9]} 44... Bf7 {[%clk 0:00:07.6]} 45. Raa5 {[%clk 0:00:03.1]}
45... Rxc5 {[%clk 0:00:07.7]} 46. Rxc5 {[%clk 0:00:04]} 46... Kf6 {[%clk
0:00:08.4]} 47. Rc6+ {[%clk 0:00:04.2]} 47... Re6 {[%clk 0:00:08.6]} 48. Rc5
{[%clk 0:00:04.1]} 48... h6 {[%clk 0:00:08.6]} 49. Rc7 {[%clk 0:00:04.6]} 49...
Re7 {[%clk 0:00:08.8]} 50. Rc6+ {[%clk 0:00:04.1]} 50... Be6 {[%clk 0:00:08.5]}
51. g3 {[%clk 0:00:04.5]} 51... g5 {[%clk 0:00:07.8]} 52. hxg5+ {[%clk
0:00:03.5]} 52... hxg5 {[%clk 0:00:08.7]} 53. Bc4 {[%clk 0:00:03.1]} 53... Ke5
{[%clk 0:00:09.2]} 54. Bxe6 {[%clk 0:00:03.3]} 54... Rxe6 {[%clk 0:00:09.5]} 55.
Rc5+ {[%clk 0:00:03.9]} 55... Kf6 {[%clk 0:00:10]} 56. Rc1 {[%clk 0:00:04.8]}
56... Ra6 {[%clk 0:00:10]} 57. Kg2 {[%clk 0:00:05.4]} 57... f4 {[%clk
0:00:08.3]} 58. gxf4 {[%clk 0:00:05]} 58... gxf4 {[%clk 0:00:09.2]} 59. Re1
{[%clk 0:00:05.3]} 59... Kf5 {[%clk 0:00:09.6]} 60. Rb1 {[%clk 0:00:05.1]} 60...
Rg6+ {[%clk 0:00:09.3]} 61. Kf1 {[%clk 0:00:04.9]} 61... Kg4 {[%clk 0:00:09]}
62. Rb4 {[%clk 0:00:05.1]} 62... Kf3 {[%clk 0:00:08]} 63. Rb3+ {[%clk
0:00:05.3]} 63... e3 {[%clk 0:00:08.6]} 64. fxe3 {[%clk 0:00:05.6]} 64... fxe3
{[%clk 0:00:09.5]} 65. Rb2 {[%clk 0:00:04.4]} 65... Ra6 {[%clk 0:00:08.6]} 66.
Rb1 {[%clk 0:00:04.2]} 66... Rh6 {[%clk 0:00:08.8]} 67. Kg1 {[%clk 0:00:02.1]}
67... Rg6+ {[%clk 0:00:09]} 68. Kf1 {[%clk 0:00:01.8]} 68... Rg2 {[%clk
0:00:08.1]} 69. Ke1 {[%clk 0:00:01.5]} 69... Rg1# {[%clk 0:00:08.3]} 0-1